bitfinex-derivatives/quotes_ETHF0:USTF0_20250213
["timestamp","ask_amount","ask_price","bid_price","bid_amount"]
[1739461869665,0.6029,2658.4,2657.7,3.50353272]
[1739461869860,0.75234,2658.0,2657.7,3.2078]
[1739461870170,4.62688611,2658.2,2657.9,0.75234]
[1739461870466,3.87459611,2658.2,2657.7,3.2078]
[1739461871166,1.937,2658.5,2658.4,0.75222]
[1739461871377,0.75219,2658.5,2658.0,3.2078]
[1739461871560,0.75222,2658.4,2658.0,3.2078]
[1739461871765,3.87459611,2658.5,2658.1,41.5523]
[1739461871960,3.87459611,2658.5,2658.1,40.8]
[1739461872264,0.6002,2659.0,2658.4,3.2078]
[1739461872464,0.5938,2659.3,2659.1,0.75199]
[1739461872667,0.5938,2659.3,2658.4,3.2078]
[1739461872668,1.34578,2659.3,2658.5,2.44538]
[1739461872865,1.34578,2659.3,2659.0,0.75202]
[1739461873170,1.34578,2659.3,2658.4,5.1448]
[1739461873171,7.08239611,2659.1,2658.4,3.2078]
[1739461873371,0.7522,2658.5,2658.3,0.75224]
[1739461873559,0.75217,2658.6,2658.3,0.75222]
[1739461873759,0.75217,2658.6,2658.4,0.75221]
[1739461873978,7.08239611,2659.1,2658.5,3.2078]
[1739461874267,0.75213,2658.8,2658.6,0.75215]
[1739461874471,9.60309611,2659.1,2658.6,0.75214]
[1739461874662,9.60309611,2659.1,2658.5,3.2078]
[1739461875067,3.87459611,2658.8,2658.5,3.2078]
[1739461875271,0.75223,2658.4,2658.2,0.75225]
[1739461875462,0.5643,2658.7,2658.1,3.2078]
[1739461875660,4.62679611,2658.5,2658.3,0.75224]
[1739461875860,3.87459611,2658.5,2658.1,3.2078]
[1739461876267,4.62679611,2658.5,2658.3,0.75223]
[1739461876569,4.62679611,2658.5,2658.3,0.75224]
[1739461877370,0.5643,2658.7,2658.1,3.2078]
[1739461877669,0.5643,2658.7,2658.6,0.75216]
[1739461878079,1.31644,2658.7,2658.5,0.75217]
[1739461878271,0.5643,2658.7,2658.6,0.75216]
[1739461878666,1.937,2659.0,2658.8,0.75208]
[1739461878667,2.68906,2659.0,2658.8,0.75208]
[1739461878870,1.937,2659.0,2658.1,5.08854]
[1739461879077,7.08239611,2658.8,2658.1,3.2078]
[1739461879278,0.75231,2658.1,2657.9,0.75234]
[1739461879579,3.87459611,2658.2,2657.8,3.2078]
[1739461879775,4.62686611,2658.2,2657.8,3.2078]
[1739461879976,4.62686611,2658.2,2658.0,0.75231]
[1739461880176,0.75233,2658.0,2657.9,0.75235]
[1739461880376,4.62688611,2658.2,2658.0,0.75232]
[1739461880571,0.75232,2658.1,2657.9,0.75233]
[1739461880771,0.75233,2658.0,2657.9,0.75233]
[1739461880971,7.08239611,2658.2,2657.6,0.30158702]
[1739461881166,3.2078,2657.9,2657.2,5.6896]
[1739461881367,3.2078,2657.9,2657.2,3.7526]
[1739461881577,0.00564217,2657.8,2657.7,0.75241]
[1739461881970,0.00564217,2657.8,2657.4,3.2078]
[1739461882181,0.00564217,2657.8,2657.7,0.75241]
[1739461882676,0.00564217,2657.8,2657.7,3.96021]
[1739461883975,0.75803217,2657.8,2657.7,3.96021]
[1739461884175,0.00564217,2657.8,2657.4,3.50378215]
[1739461884383,0.75243,2657.7,2657.6,0.75243]
[1739461884571,0.00564217,2657.8,2657.7,0.75241]
[1739461885277,0.00564217,2657.8,2657.7,3.96021]
[1739461886275,0.00564217,2657.8,2657.7,0.75241]
[1739461886782,0.00564217,2657.8,2657.7,3.96021]
[1739461886983,1.88039,2658.7,2657.7,3.96021]
[1739461886984,3.87459611,2658.8,2658.7,0.75213]
[1739461887180,3.87459611,2658.8,2657.8,1.88096]
[1739461887181,3.87459611,2659.1,2658.5,3.2078]
[1739461887480,0.5967,2659.3,2658.5,3.2078]
[1739461887481,0.5967,2659.3,2658.6,0.5993]
[1739461887781,0.5967,2659.3,2658.6,3.8071]
[1739461887978,0.5967,2659.3,2659.2,0.75199]
[1739461888483,3.2078,2659.4,2659.3,0.75196]
[1739461888677,0.00564217,2659.5,2659.4,0.75193]
[1739461889484,0.00564217,2659.5,2659.2,3.2078]
[1739461889683,0.00564217,2659.5,2659.4,0.75193]
[1739461889883,3.88023828,2659.5,2658.9,3.2078]
[1739461890083,0.75196,2659.4,2658.9,3.2078]
[1739461890278,3.88023828,2659.5,2658.7,0.59944217]
[1739461890473,3.2078,2659.4,2658.7,0.59944217]
[1739461890680,3.87459611,2659.2,2658.7,0.00564217]
[1739461890977,1.94164217,2659.5,2658.7,0.00564217]
[1739461890978,0.7521,2658.8,2658.7,0.00564217]
[1739461891379,3.9599,2658.8,2658.7,0.00564217]
[1739461892080,3.2078,2658.8,2658.7,0.00564217]
[1739461892386,3.2078,2658.8,2658.3,3.2078]
[1739461892688,3.2078,2658.8,2658.7,0.75213]
[1739461893281,1.1422,2659.3,2659.1,0.752]
[1739461893475,1.1422,2659.3,2658.7,3.2078]
[1739461893476,0.75202,2659.1,2658.8,0.75208]
[1739461894082,0.75206,2659.0,2658.7,0.75211]
[1739461894292,1.936,2658.9,2658.4,3.2078]
[1739461894480,3.2078,2658.8,2658.4,3.2078]
[1739461894786,0.75217,2658.6,2658.4,3.2078]
[1739461895084,3.2078,2658.5,2658.0,3.2078]
[1739461895286,0.5524,2658.7,2658.0,3.2078]
[1739461895489,3.2078,2658.5,2658.0,3.2078]
[1739461895981,3.2078,2658.5,2658.3,0.75222]
[1739461896187,3.96,2658.5,2658.2,0.75226]
[1739461896388,0.75223,2658.4,2658.1,0.75229]
[1739461896589,0.75222,2658.4,2658.1,0.75229]
[1739461896789,3.2078,2658.5,2657.7,4.3807]
[1739461896990,0.75222,2658.4,2657.7,4.3807]
[1739461897193,0.75224,2658.4,2657.7,4.3807]
[1739461897483,5.1438,2658.5,2657.7,4.3807]
[1739461897690,0.75229,2658.2,2657.9,0.75233]
[1739461897886,0.75228,2658.2,2657.7,4.3807]
[1739461898088,5.1438,2658.5,2657.8,1.88097]
[1739461898283,0.75222,2658.4,2657.7,4.3807]
[1739461898491,0.75222,2658.4,2658.2,0.75226]
[1739461898792,5.1438,2658.5,2657.7,6.2617]
[1739461898992,0.75225,2658.3,2658.1,0.75228]
[1739461899192,5.1438,2658.5,2657.7,4.3807]
[1739461899489,0.75237,2657.9,2657.7,3.9602]
[1739461899789,5.1438,2658.5,2657.9,0.75235]
[1739461899991,0.75795217,2658.1,2657.9,0.75235]
[1739461900191,0.75234,2658.0,2657.8,0.75237]
[1739461900494,0.75796217,2658.1,2657.9,0.75235]
[1739461900698,0.00564217,2658.1,2657.7,3.2078]
[1739461900995,0.75235,2658.0,2657.8,0.75238]
[1739461901194,0.00564217,2658.1,2657.7,3.2078]
[1739461901390,0.75235,2658.0,2657.8,0.75237]
[1739461901590,0.00564217,2658.1,2657.7,3.2078]
[1739461901591,0.56224217,2658.1,2657.7,3.2078]
[1739461901991,0.56224217,2658.1,2657.9,0.75234]
[1739461901992,1.31455217,2658.1,2657.9,0.75234]
[1739461902296,0.56224217,2658.1,2657.7,3.2078]
[1739461902895,0.56224217,2658.1,2658.0,0.75233]
[1739461903087,0.00564217,2658.1,2658.0,0.75233]
[1739461903286,0.00564217,2658.1,2658.0,3.96013]
[1739461903688,0.00564217,2658.1,2658.0,0.75233]
[1739461904391,0.00564217,2658.1,2658.0,3.96013]
[1739461904594,1.88021,2658.9,2658.2,1.88065]
[1739461904595,5.1438,2658.9,2658.2,1.88065]
[1739461904897,5.1438,2658.9,2658.0,3.2078]
[1739461905096,1.711,2658.8,2658.0,3.2078]
[1739461905396,0.75226,2658.3,2658.1,0.7523]
[1739461905591,3.2078,2658.6,2657.9,1.30623]
[1739461905592,1.88048,2658.5,2657.9,1.30623]
[1739461905790,1.88048,2658.5,2657.9,0.55954217]
[1739461905791,0.00564217,2658.5,2657.9,0.55954217]
[1739461906395,0.00564217,2658.5,2657.9,2.44042217]
[1739461906595,0.00564217,2658.5,2658.4,0.75222]
[1739461906990,0.00564217,2658.5,2658.1,3.2078]
[1739461907388,0.00564217,2658.5,2658.4,0.75222]
[1739461907900,0.75203,2659.1,2659.0,0.75204]
[1739461908287,3.2078,2659.2,2659.0,0.75204]
[1739461908489,0.75198,2659.3,2658.6,1.1019]
[1739461908798,3.2078,2659.5,2658.8,3.2078]
[1739461908995,0.75206,2659.0,2658.8,3.2078]
[1739461909191,0.00564217,2659.2,2658.8,3.2078]
[1739461909395,0.00564217,2659.2,2659.1,0.75202]
[1739461909597,0.75764217,2659.2,2659.0,0.75202]
[1739461909798,0.00564217,2659.2,2658.6,1.1019]
[1739461910292,0.00564217,2659.2,2658.5,3.2078]
[1739461910293,0.75216,2658.7,2658.5,3.2078]
[1739461910500,0.75211,2658.8,2658.6,0.75214]
[1739461910690,3.2078,2658.9,2658.8,0.7521]
[1739461910891,3.95988,2658.9,2658.7,0.75212]
[1739461911193,0.75213,2658.8,2658.6,0.75215]
[1739461911592,3.2078,2658.9,2658.2,5.1428]
[1739461911896,0.75217,2658.6,2658.4,0.7522]
[1739461912097,0.75217,2658.6,2658.2,5.1428]
[1739461912301,3.88612399,2658.8,2658.2,3.2078]
[1739461912502,3.88612399,2658.5,2658.2,3.2078]
[1739461912696,3.88612399,2658.5,2658.0,0.75232]
[1739461912697,5.76663399,2658.5,2658.0,0.75232]
[1739461912894,0.75229,2658.2,2658.0,0.75232]
[1739461913096,0.75225,2658.3,2658.1,0.75228]
[1739461913294,0.75226,2658.3,2658.1,0.75228]
[1739461913494,0.75227,2658.2,2658.0,0.7523]
[1739461913796,3.1154,2658.7,2657.9,0.00564217]
[1739461913988,1.1804,2658.7,2658.1,3.2078]
[1739461914195,0.5854,2658.7,2658.2,0.5579]
[1739461914804,0.7522,2658.5,2658.3,0.75222]
[1739461914993,0.5854,2658.7,2658.2,0.5579]
[1739461915393,1.33755,2658.7,2658.5,0.75217]
[1739461915805,1.33754,2658.7,2658.5,0.75217]
[1739461916203,3.2078,2658.9,2658.4,3.2078]
[1739461916391,3.95989,2658.9,2658.7,0.75211]
[1739461916589,3.2078,2658.9,2658.4,3.2078]
[1739461916793,3.2078,2658.9,2658.8,0.7521]
[1739461917090,3.88612399,2659.1,2658.7,3.2078]
[1739461917296,0.75198,2659.3,2659.1,0.75202]
[1739461917494,4.44822399,2659.4,2659.0,0.75202]
[1739461917701,0.75765217,2659.2,2659.1,0.75202]
[1739461917905,0.00564217,2659.2,2659.1,0.75202]
[1739461918203,0.00564217,2659.2,2658.8,0.5585]
[1739461918503,0.75203,2659.1,2658.9,0.75206]
[1739461918692,0.75765217,2659.2,2659.0,0.75202]
[1739461918893,0.00564217,2659.2,2659.1,0.75202]
[1739461919300,0.75764217,2659.2,2659.0,0.75202]
[1739461919599,0.00564217,2659.2,2658.8,1.31059]
[1739461919807,7.09392399,2659.1,2658.7,3.2078]
[1739461919999,1.1417,2659.0,2658.4,3.2078]
[1739461920300,1.1417,2659.0,2658.9,0.75207]
[1739461920498,1.1417,2659.0,2658.3,5.64659]
[1739461920896,1.1417,2659.0,2658.3,3.766]
[1739461921097,1.1417,2659.0,2658.4,1.88055]
[1739461921296,0.00564217,2659.2,2658.6,3.2078]
[1739461921502,0.00564217,2659.2,2659.1,0.75202]
[1739461921703,0.00564217,2659.2,2658.4,0.3294]
[1739461921704,0.00564217,2659.2,2658.6,3.2078]
[1739461921905,7.09392399,2659.1,2658.6,3.2078]
[1739461922100,7.09392399,2659.1,2658.3,0.5582]
[1739461922101,3.88612399,2658.8,2658.3,0.5582]
[1739461922294,0.75217,2658.6,2658.3,1.1132]
[1739461922696,0.7522,2658.5,2658.3,1.1132]
[1739461922901,2.45236,2658.7,2657.9,0.00564217]
[1739461923103,0.75226,2658.3,2658.1,0.75229]
[1739461923304,1.934,2658.6,2658.1,3.2078]
[1739461924102,1.934,2658.6,2658.5,0.75219]
[1739461924300,2.68616,2658.6,2658.4,0.7522]
[1739461924501,3.2078,2658.5,2657.9,0.00564217]
[1739461924705,0.75226,2658.3,2658.1,0.75228]
[1739461924905,7.69042399,2658.5,2657.9,0.00564217]
[1739461925302,0.75225,2658.3,2658.1,0.75229]
[1739461925901,0.7523,2658.1,2658.0,0.75232]
[1739461926101,0.75229,2658.2,2657.9,0.00564217]
[1739461926304,7.69042399,2658.5,2657.9,0.00564217]
[1739461926505,0.75222,2658.4,2658.2,0.75225]
[1739461926806,7.69042399,2658.5,2657.9,0.00564217]
[1739461926807,3.8043,2658.5,2657.9,0.00564217]
[1739461927004,0.572,2658.7,2658.6,0.75216]
[1739461927205,3.783,2658.8,2658.2,3.2078]
[1739461927405,0.75217,2658.6,2658.4,0.7522]
[1739461927605,0.5723,2658.7,2658.3,0.5554]
[1739461927908,4.53512,2658.8,2658.6,0.75216]
[1739461928206,3.783,2658.8,2658.4,0.5929]
[1739461928399,3.783,2658.8,2658.7,0.75213]
[1739461928596,0.00564217,2659.2,2658.6,3.2078]
[1739461928805,0.00564217,2659.2,2659.1,0.75202]
[1739461929603,0.00564217,2659.2,2659.0,1.32083]
[1739461929805,0.75202,2659.1,2659.0,0.5688]
[1739461930001,0.00564217,2659.2,2659.1,0.75202]
[1739461931600,2.17e-06,2659.2,2659.1,6.75202]
[1739461932002,0.5742,2660.2,2659.3,1.87991]
[1739461932200,0.75165,2660.5,2660.2,0.7517]
[1739461932402,7.09392399,2660.6,2660.1,0.75172]
[1739461932403,0.75169,2660.3,2660.1,0.75172]
[1739461932608,0.75167,2660.4,2660.1,0.75172]
[1739461932909,7.66812399,2660.6,2659.8,0.5883]
[1739461933110,0.75731217,2660.4,2660.1,0.75171]
[1739461933313,0.00564217,2660.4,2659.8,0.59394217]
[1739461933512,0.75168,2660.3,2659.8,0.59394217]
[1739461933718,0.00564217,2660.4,2659.8,0.59394217]
[1739461933909,0.00564217,2660.4,2660.2,0.75169]
[1739461934310,0.00564217,2660.4,2660.3,0.75168]
[1739461934512,7.09392399,2661.2,2660.4,1.87913]
[1739461934708,0.75146,2661.1,2660.9,0.7515]
[1739461934907,7.84535399,2661.2,2660.6,3.2078]
[1739461935105,7.09392399,2661.2,2661.0,0.75146]
[1739461935310,3.2078,2661.2,2661.0,0.75146]
[1739461935506,3.2078,2661.2,2661.0,0.75147]
[1739461935708,3.2078,2661.2,2660.6,3.2078]
[1739461935913,3.2078,2661.2,2661.1,0.75145]
[1739461936217,0.00564217,2661.4,2661.3,0.7514]
[1739461936415,0.00564217,2661.4,2660.9,3.2078]
[1739461936719,0.75702217,2661.4,2661.1,0.75144]
[1739461936916,0.75702217,2661.4,2660.9,3.2078]
[1739461936917,0.00564217,2661.4,2660.9,3.2078]
[1739461937216,0.00564217,2661.4,2661.0,0.75148]
[1739461937516,0.75146,2661.1,2660.8,0.75153]
[1739461937710,3.88612399,2661.2,2660.6,3.2078]
[1739461938011,7.84535399,2661.2,2660.5,3.7961]
[1739461938203,3.2078,2661.2,2661.0,0.75148]
[1739461938409,0.00564217,2661.4,2661.3,0.7514]
[1739461939514,0.00564217,2661.4,2661.2,3.2078]
[1739461939708,0.00564217,2661.4,2660.5,3.7961]
[1739461939709,0.7514,2661.3,2660.5,3.7961]
[1739461939909,0.00564217,2661.4,2660.8,3.2078]
[1739461940112,0.00564217,2661.4,2660.5,3.7961]
[1739461940310,0.75145,2661.1,2660.8,0.75152]
[1739461940509,0.5427,2661.3,2660.5,5.67515]
[1739461940714,0.5427,2661.3,2660.6,1.87899]
[1739461940915,0.00564217,2661.4,2660.8,3.2078]
[1739461941110,0.00564217,2661.4,2661.3,0.7514]
[1739461941413,0.00564217,2661.4,2660.8,3.2078]
[1739461941613,0.75702217,2661.4,2661.2,0.75142]
[1739461942210,0.00564217,2661.4,2660.8,3.2078]
[1739461942414,0.00564217,2661.4,2661.3,0.7514]
[1739461943912,2.17e-06,2661.4,2661.3,6.7514]
[1739461944112,2.17e-06,2661.4,2661.3,8.6824]
[1739461945410,2.17e-06,2661.4,2661.3,2.6824]
[1739461945807,2.17e-06,2661.4,2661.3,8.6824]
[1739461946816,2.17e-06,2661.4,2661.3,2.6824]
[1739461947312,2.17e-06,2661.4,2661.2,2.4838]
[1739461947520,0.75138217,2661.4,2661.3,0.7514]
[1739461947714,2.17e-06,2661.4,2661.1,3.2078]
[1739461948110,0.75142,2661.2,2661.1,3.2078]
[1739461948316,2.17e-06,2661.4,2660.8,3.7602]
[1739461948617,0.75152,2660.9,2660.7,0.5694]
[1739461948814,2.17e-06,2661.4,2660.8,3.2078]
[1739461949114,0.75143,2661.2,2661.1,0.75144]
[1739461949315,2.17e-06,2661.4,2660.8,3.2078]
[1739461949511,2.17e-06,2661.4,2661.3,0.7514]
[1739461950112,2.17e-06,2661.4,2661.2,0.5585]
[1739461950113,2.17e-06,2661.4,2661.1,3.2078]
[1739461950315,2.17e-06,2661.4,2661.3,0.7514]
[1739461950620,0.75141,2661.3,2661.2,0.75141]
[1739461950819,2.17e-06,2661.4,2661.1,3.2078]
[1739461951118,2.17e-06,2661.4,2660.8,3.7663]
[1739461951319,2.17e-06,2661.4,2661.0,0.75146]
[1739461951516,0.75145,2661.1,2661.0,0.75146]
[1739461951811,0.75147,2661.1,2661.0,0.75148]
[1739461952017,3.2078,2661.1,2660.5,3.2078]
[1739461952406,0.5767,2661.0,2660.5,3.2078]
[1739461952610,0.5767,2661.0,2660.5,3.95941]
[1739461952823,0.75165,2660.5,2660.2,3.2078]
[1739461953014,3.2078,2660.8,2660.2,3.2078]
[1739461953218,0.75165,2660.5,2660.2,3.95949]
[1739461953418,0.75165,2660.4,2660.2,3.95949]
[1739461953717,0.543,2660.4,2660.0,0.75175]
[1739461953917,0.75168,2660.3,2660.0,0.75175]
[1739461954113,0.543,2660.4,2659.8,3.21344217]
[1739461954114,1.1044,2660.4,2660.3,0.75168]
[1739461954412,0.543,2660.4,2660.3,0.75168]
[1739461955010,0.543,2660.4,2659.8,3.21344217]
[1739461955212,0.75172,2660.2,2660.0,0.75175]
[1739461955820,0.543,2660.4,2659.8,3.21344217]
[1739461956026,0.75169,2660.3,2660.1,0.75173]
[1739461956321,0.543,2660.4,2659.8,3.21344217]
[1739461956516,0.75169,2660.3,2660.1,0.75173]
[1739461957122,0.543,2660.4,2659.8,3.21344217]
[1739461957324,0.75176,2660.1,2659.9,0.75178]
[1739461957518,0.5463,2660.3,2659.8,3.21344217]
[1739461957719,0.75179,2659.9,2659.8,0.00564217]
[1739461958222,3.95959,2659.9,2659.8,0.00564217]
[1739461958417,3.2078,2659.9,2659.2,3.2078]
[1739461958918,3.2078,2659.9,2659.1,0.544]
[1739461958919,3.88612399,2659.7,2659.1,0.752]
[1739461959120,0.5724,2659.6,2659.1,0.752]
[1739461959320,0.5724,2659.6,2658.9,3.7821]
[1739461959623,3.88612399,2659.4,2659.0,0.00564217]
[1739461959818,1.10644217,2659.5,2659.1,3.2078]
[1739461960025,1.10644217,2659.5,2659.4,0.75193]
[1739461960523,1.10644217,2659.5,2659.0,0.00564217]
[1739461960729,0.75195,2659.4,2659.2,0.75199]
[1739461960915,1.10644217,2659.5,2659.0,0.00564217]
[1739461961218,0.752,2659.2,2659.0,0.75767217]
[1739461961623,0.75202,2659.1,2659.0,0.00564217]
[1739461962322,4.31424217,2659.5,2659.1,0.75201]
[1739461962623,0.75198,2659.3,2659.1,0.75201]
[1739461962819,0.75198,2659.3,2659.0,0.00564217]
[1739461963020,0.75194,2659.4,2659.2,0.75197]
[1739461963222,0.75194,2659.4,2659.0,0.00564217]
[1739461963223,4.31424217,2659.5,2659.1,0.752]
[1739461963413,4.31424217,2659.5,2659.0,0.75767217]
[1739461963721,0.75202,2659.1,2659.0,0.00564217]
[1739461964524,6.19405217,2659.5,2659.0,0.00564217]
[1739461964525,0.75197,2659.3,2659.0,0.00564217]
[1739461964715,4.31424217,2659.5,2659.0,0.75768217]
[1739461965220,4.31424217,2659.5,2659.0,0.00564217]
[1739461965425,0.75194,2659.4,2659.3,0.75196]
[1739461965627,0.75194,2659.4,2659.0,0.00564217]
[1739461966228,0.75196,2659.3,2659.2,0.75197]
[1739461966529,0.75202,2659.1,2659.0,0.75768217]
[1739461966725,0.75202,2659.1,2659.0,0.00564217]
[1739461967221,0.752,2659.2,2659.1,0.75201]
[1739461967622,0.75202,2659.1,2659.0,0.00564217]
[1739461967822,5.23254399,2659.1,2659.0,0.00564217]
[1739461968223,5.23254399,2659.1,2658.5,3.95998]
[1739461968224,4.48052399,2659.1,2658.5,3.2078]
[1739461968426,1.88016,2659.0,2658.5,3.95997]
[1739461968639,0.75215,2658.7,2658.5,3.95997]
[1739461968831,5.08806,2658.8,2658.1,3.2078]
[1739461969131,0.75235,2658.0,2657.7,0.75239]
[1739461969325,3.88612399,2658.2,2657.5,3.81]
[1739461969631,0.60584217,2658.1,2657.6,0.00564217]
[1739461970030,0.7524,2657.8,2657.6,0.00564217]
[1739461970535,0.75236,2657.9,2657.6,0.00564217]
[1739461970937,0.7524,2657.8,2657.6,0.00564217]
[1739461971233,0.75241,2657.7,2657.6,0.00564217]
[1739461972029,0.7524,2657.8,2657.6,0.00564217]
[1739461972233,7.09392399,2657.9,2657.6,0.00564217]
[1739461972433,0.75239,2657.8,2657.6,0.00564217]
[1739461972634,7.09392399,2657.9,2657.6,0.00564217]
[1739461972829,0.75239,2657.8,2657.6,0.00564217]
[1739461973028,0.75241,2657.7,2657.6,0.00564217]
[1739461975435,2.68241,2657.7,2657.6,0.00564217]
[1739461975637,1.88125,2657.4,2656.6,3.2078]
[1739461975938,0.75265,2656.9,2656.3,5.1378]
[1739461976139,3.88612399,2657.2,2656.6,3.2078]
[1739461976335,0.75262,2657.0,2656.7,0.7527]
[1739461976648,3.88612399,2657.2,2656.6,3.21344217]
[1739461976936,3.88612399,2657.2,2656.8,0.75264]
[1739461976937,0.75259,2657.1,2656.8,0.75264]
[1739461977137,3.88612399,2657.2,2656.6,3.21344217]
[1739461977340,0.75263,2657.0,2656.7,0.75268]
[1739461977530,0.75266,2656.9,2656.7,0.75269]
[1739461977840,6.39712399,2657.2,2656.6,0.75835217]
[1739461978139,0.75266,2656.9,2656.6,0.75834217]
[1739461978334,6.39712399,2657.2,2656.6,0.00564217]
[1739461978538,0.75265,2656.9,2656.6,0.00564217]
[1739461978737,0.7526,2657.1,2656.6,0.00564217]
[1739461978941,0.7526,2657.1,2656.9,0.75263]
[1739461979234,0.7526,2657.1,2656.6,0.00564217]
[1739461979235,0.75257,2657.2,2656.6,3.21344217]
[1739461979538,3.88612399,2657.2,2656.6,3.21344217]
[1739461979837,0.75264,2656.9,2656.7,0.75268]
[1739461980038,3.88612399,2657.2,2656.7,0.75267]
[1739461980239,3.88612399,2657.2,2656.6,3.21344217]
[1739461980434,0.75263,2657.0,2656.8,0.75265]
[1739461980642,0.75264,2656.9,2656.7,0.75268]
[1739461980843,3.88612399,2657.2,2656.6,0.00564217]
[1739461981141,3.2078,2657.3,2656.6,3.21344217]
[1739461981329,3.2078,2657.3,2656.7,0.5911]
[1739461981534,3.2078,2657.3,2656.8,2.45022]
[1739461981740,3.96033,2657.3,2657.2,0.75256]
[1739461981941,3.2078,2657.3,2656.8,0.5686]
[1739461982237,4.46732399,2657.5,2656.8,0.5686]
[1739461982433,3.88612399,2657.2,2656.8,0.5686]
[1739461982633,0.75264,2656.9,2656.8,1.32126]
[1739461983034,3.88612399,2657.2,2656.8,0.5686]
[1739461983236,3.88612399,2657.2,2656.7,0.5911]
[1739461983237,3.88612399,2657.2,2656.6,0.00564217]
[1739461983450,0.7527,2656.7,2656.6,0.00564217]
[1739461983740,9.59432399,2657.2,2657.0,0.7526]
[1739461983935,9.59432399,2657.2,2656.6,0.00564217]
[1739461984138,0.7527,2656.7,2656.6,0.00564217]
[1739461985544,2.6827,2656.7,2656.6,0.00564217]
[1739461985844,0.7527,2656.7,2656.6,0.00564217]
[1739461986036,2.4755,2656.8,2655.9,3.2078]
[1739461986243,0.75277,2656.5,2656.2,0.75281]
[1739461986437,0.75277,2656.5,2656.2,0.75283]
[1739461986644,7.09392399,2656.6,2655.9,3.2078]
[1739461987040,7.09392399,2656.6,2655.8,1.1741]
[1739461987236,7.09392399,2656.3,2655.8,1.1741]
[1739461987541,7.09392399,2656.3,2655.9,0.00564217]
[1739461987736,7.84682399,2656.0,2655.9,0.00564217]
[1739461987942,7.09392399,2656.0,2655.9,0.00564217]
[1739461988142,4.63902399,2656.0,2655.9,0.00564217]
[1739461988644,4.63902399,2656.0,2655.3,1.1522]
[1739461988845,3.2078,2655.9,2655.3,1.1522]
[1739461989246,3.2078,2655.9,2655.2,3.2078]
[1739461989247,3.88612399,2655.7,2655.2,3.2078]
[1739461989547,3.2078,2655.9,2655.2,3.2078]
[1739461989740,0.75297,2655.8,2655.2,3.2078]
[1739461989941,5.89174,2655.9,2655.6,0.75301]
[1739461990142,5.89174,2655.9,2655.2,3.2078]
[1739461990143,3.2078,2655.9,2655.2,3.2078]
[1739461990341,3.2078,2655.9,2654.8,3.2078]
[1739461990342,0.75321,2654.9,2654.8,3.2078]
[1739461990544,3.88612399,2655.1,2654.5,3.2078]
[1739461990748,0.75322,2654.9,2654.6,0.75328]
[1739461991041,3.89176616,2655.1,2654.5,3.2078]
[1739461991246,0.75318,2655.0,2654.6,0.75327]
[1739461991441,0.75326,2654.8,2654.4,0.5915]
[1739461991643,0.7533,2654.6,2654.4,0.5915]
[1739461991839,5.1388,2655.0,2654.4,0.5915]
[1739461992043,5.1388,2655.0,2654.2,3.2078]
[1739461992245,3.2078,2654.3,2653.6,0.545]
[1739461992446,3.2078,2654.0,2653.2,0.5915]
[1739461992649,3.88612399,2654.6,2653.1,3.2078]
[1739461992650,3.2078,2653.7,2653.1,3.2078]
[1739461992849,0.75369,2653.2,2652.8,0.5455]
[1739461993044,3.2078,2653.4,2652.8,0.5455]
[1739461993241,3.88612399,2653.2,2652.7,4.51904376]
[1739461993445,4.63981399,2653.2,2652.7,4.51903376]
[1739461993648,5.81712399,2653.2,2652.7,4.51903376]
[1739461993847,1.931,2653.2,2652.7,3.2078]
[1739461994046,0.00565312,2653.3,2653.0,3.2078]
[1739461994249,0.00565312,2653.3,2652.7,3.2078]
[1739461994445,0.00565312,2653.3,2652.2,45.16143]
[1739461994446,0.00565312,2653.3,2652.6,3.2078]
[1739461994654,0.00565312,2653.3,2652.9,3.2078]
[1739461995254,7.09392399,2653.2,2652.2,0.5455]
[1739461995456,0.75378,2652.9,2652.4,0.7539]
[1739461995749,0.75378,2652.9,2652.4,3.9617]
[1739461995955,0.75373,2653.1,2652.6,0.75384]
[1739461996154,7.09392399,2653.2,2652.4,3.2078]
[1739461996356,3.88612399,2653.2,2652.7,3.2078]
[1739461996655,3.88612399,2653.2,2653.1,0.75372]
[1739461996854,3.88612399,2653.2,2652.7,3.2078]
[1739461996855,3.88612399,2653.2,2653.0,0.75373]
[1739461997048,3.88612399,2653.2,2652.9,0.75377]
[1739461997354,3.88612399,2653.2,2653.0,0.75374]
[1739461997557,0.58415312,2653.3,2652.7,3.2078]
[1739461997859,0.00565312,2653.3,2653.2,0.75369]
[1739461998750,0.00565312,2653.3,2653.2,41.55369]
[1739462000758,3.12e-06,2653.3,2653.2,47.55369]
[1739462000958,3.12e-06,2653.3,2653.2,41.55369]
[1739462001257,3.12e-06,2653.3,2653.2,43.48569]
[1739462001555,3.12e-06,2653.3,2653.2,2.68569]
[1739462002547,3.12e-06,2653.3,2653.2,0.75369]
[1739462003949,3.12e-06,2653.3,2653.0,3.21345312]
[1739462004150,3.12e-06,2653.3,2653.0,0.00565312]
[1739462004151,0.75372,2653.1,2653.0,0.00565312]
[1739462004560,0.75377,2653.0,2652.4,3.2078]
[1739462004861,0.75377,2653.0,2652.8,0.75378]
[1739462005160,7.09392399,2653.2,2652.4,3.2078]
[1739462005362,7.09392399,2653.2,2652.9,0.75376]
[1739462005564,7.09392399,2653.2,2652.4,3.2078]
[1739462005765,3.88612399,2653.2,2653.1,0.75372]
[1739462006061,3.12e-06,2653.3,2652.7,3.15629046]
[1739462006255,3.12e-06,2653.3,2653.2,0.75369]
[1739462007950,3.12e-06,2653.3,2653.0,3.2078]
[1739462007951,3.12e-06,2653.3,2653.1,0.7537]
[1739462008154,0.75368312,2653.3,2653.1,0.75372]
[1739462008360,0.75368312,2653.3,2653.0,3.2078]
[1739462008558,3.12e-06,2653.3,2653.0,3.2078]
[1739462008758,3.12e-06,2653.3,2653.2,0.75369]
[1739462013170,3.12e-06,2653.3,2653.2,1.31769]
[1739462016265,3.12e-06,2653.3,2653.2,0.75369]